Cogmind - Beta 17.1 @@@ ROGUE MODE // 2026.09.14 @ 21:49:31 Player: NeoBioHazard Result: Destroyed by S-27 Virus with Autogun Performance ------------- Evolutions (6) 3000 Regions Visited (12) 2400 Robots Destroyed (182) 910 Value Destroyed (6395) 6395 Prototype IDs (14) 280 Alien Tech Used (0) 0 Bonus (6513) 6513 TOTAL SCORE: 19498 Bonus ------- Triggered High Security 500 High Alert Combat Kills 1177 Follower Combat Kills 3618 Network Hubs Disabled 400 Built Enhanced Grunts 300 A7 Reached Mainframe 300 Met R17 at Cetus 500 Friendly Fire -282 Cogmind --------- Core Integrity 0/1150 Matter 260/300 Energy 80/100 System Corruption 5% Temperature Cool (0) Movement Core (50) Location -4/Factory Parts ------- > --- POWER (1) -------- (None) > --- PROPULSION (6) --- (None) > --- UTILITY (10) ----- (None) > --- WEAPON (2) ------- (None) > --- INVENTORY (5) ---- Field Propulsion Array Advanced Sensor Array Advanced Signal Interpreter Advanced Terrain Scan Processor Peak State ------------ > --- POWER ------------ Reinforced Fission Core > --- PROPULSION ------- Medium Treads Armored Medium Treads Centrium Heavy Treads > --- UTILITY ---------- Advanced Heat Sink Improved Cooling System Large Storage Unit Advanced Signal Interpreter Experimental Targeting Computer Experimental Targeting Computer Centrium Medium Armor Plating Centrium Medium Armor Plating > --- WEAPON ----------- Wave Gun Quantum Rifle > --- INVENTORY -------- Advanced Sensor Array Advanced Terrain Scan Processor Improved Medium Armor Plating Advanced Hacking Suite Gatling Laser Gatling Laser Plasma Rifle Wave Gun Wave Gun Heavy Beamcaster Mini Grenade Launcher Precision Rocket Launcher Plasma Cutter [Rating: 99] Favorites ----------- Power Improved Deuterium Engine Engine Improved Deuterium Engine Power Core Neutrino Core Propulsion Armored Treads Treads Armored Treads Leg Aluminum Leg Wheel Armored Wheel Flight Unit Field Propulsion Array Utility Large Storage Unit Device Improved Heat Sink Storage Large Storage Unit Processor Advanced Targeting Computer Protection Improved Medium Armor Plating Weapon Gatling Laser Energy Gun Gatling Laser Ballistic Gun Light Assault Rifle Launcher Grenade Launcher Special Weapon Plasma Cutter Build | -11 -10 -10 -8 -8 -8 -6 -5 -5 -5 -5 -5 -4 ------- Run | Yrd Mat Sub Mat Sto Rec Fac Fac Ext Cet Arc Hub Fac Slots Evolved 12 | . . . 4 . . 4 2 . . . . 2 Power . | . . . . . . . . . . . . . Propulsion 4 | . . . 2 . . 2 . . . . . . Utility 8 | . . . 2 . . 2 2 . . . . 2 Weapon . | . . . . . . . . . . . . . Parts Attached 145 | 7 3 5 33 11 . 7 9 32 6 2 15 15 Power 13 | 1 . 1 3 . . . 2 3 1 . 1 1 Engine 7 | 1 . 1 3 . . . 1 . 1 . . . Core 6 | . . . . . . . 1 3 . . 1 1 Reactor . | . . . . . . . . . . . . . Propulsion 53 | 2 1 1 17 9 . 1 2 11 1 . 3 5 Treads 32 | . . . 4 9 . 1 2 11 1 . 3 1 Leg 12 | 2 1 . 8 . . . . . . . . 1 Wheel 5 | . . 1 4 . . . . . . . . . Hover . | . . . . . . . . . . . . . Flight 4 | . . . 1 . . . . . . . . 3 Utility 45 | 2 2 . 6 1 . 4 4 8 2 1 9 6 Device 21 | 1 . . 3 1 . 2 3 3 . 1 4 3 Storage 3 | 1 2 . . . . . . . . . . . Processor 8 | . . . 2 . . 1 1 . . . 2 2 Hackware . | . . . . . . . . . . . . . Protection 13 | . . . 1 . . 1 . 5 2 . 3 1 Artifact . | . . . . . . . . . . . . . Weapon 34 | 2 . 3 7 1 . 2 1 10 2 1 2 3 Energy Gun 24 | . . 1 4 1 . 2 1 9 1 1 2 2 Energy Cannon . | . . . . . . . . . . . . . Ballistic Gun 7 | 2 . 1 3 . . . . . . . . 1 Ballistic Cannon . | . . . . . . . . . . . . . Launcher 2 | . . 1 . . . . . . 1 . . . Special Weapon 1 | . . . . . . . . 1 . . . . Impact Weapon . | . . . . . . . . . . . . . Slashing Weapon . | . . . . . . . . . . . . . Piercing Weapon . | . . . . . . . . . . . . . Special Melee Weapon . | . . . . . . . . . . . . . Unidentified Prototypes 11 | . . . 2 1 . . 2 1 4 . 1 . Parts Lost 64 | . . 8 12 . . . . 13 3 2 13 13 Power 8 | . . 2 2 . . . . 1 1 . . 2 Propulsion 25 | . . 2 6 . . . . 6 2 1 5 3 Utility 19 | . . 1 2 . . . . 5 . 1 6 4 Weapon 12 | . . 3 2 . . . . 1 . . 2 4 Highest Loss Streak 7 | . . 5 5 . . . . 4 2 2 7 6 To Critical Strikes 1 | . . . . . . . . . . . . 1 Average Backups 12 | 2 8 9 12 14 15 13 14 14 14 15 14 3 Power 1 | . 1 . 2 1 1 1 . 1 . . . . Propulsion 1 | . 3 4 . 2 2 . . . 1 1 . . Utility 4 | . 1 2 5 6 6 4 4 3 3 4 5 2 Weapon 5 | . 2 2 4 4 5 6 8 8 9 9 8 1 Tool/Special . | . . . . . . . . . . . . . Unused Backups 18 | . . . 10 . . . . 1 . . 4 3 Power 1 | . . . 1 . . . . . . . . . Propulsion 1 | . . . 1 . . . . . . . . . Utility 6 | . . . 1 . . . . . . . 2 3 Weapon 10 | . . . 7 . . . . 1 . . 2 . Tool/Special . | . . . . . . . . . . . . . Average Slot Usage (%) 91 | . 100 91 91 99 100 99 99 97 92 79 82 42 Engine 6 | . 14 11 7 9 9 6 4 1 1 5 1 . Core 1 | . . . . . . . . 3 3 . 3 4 Treads 21 | . . . 4 35 36 39 35 33 28 17 18 5 Leg 6 | . 28 23 18 . . . . . . . . . Wheel 1 | . . 1 8 . . . . . . . . . Device 12 | . 14 11 8 9 9 12 22 15 11 12 13 11 Storage 7 | . 14 14 9 9 9 6 5 5 5 5 4 . Processor 11 | . . . 12 18 18 13 11 11 11 11 14 9 Protection 4 | . . . 3 . . 5 5 11 17 11 10 1 Energy Gun 11 | . . 1 15 18 18 13 11 10 9 11 10 6 Ballistic Gun 3 | . 28 21 2 . . . . . . . . . Peak Build Rating 99 | 7 8 8 35 38 38 53 68 69 87 85 99 71 Average Rating 44 | 5 7 7 28 34 38 49 62 65 82 80 89 47 On Entrance 40 | . 7 8 6 33 38 38 53 68 67 83 84 40 Avg Prop Armor Cover (%) 8 | . . . 8 9 . . . . . . . . Naked Turns 101 | . . . . . . . . . . . . 101 Heaviest Build 71 | 14 29 29 44 39 39 48 50 69 71 65 69 44 Greatest Support 174 | 20 20 20 80 80 84 124 135 143 172 149 174 57 Greatest Overweight (x) 14 | . 1 8 4 . . . 12 . . . 14 11 Average Overweight (x) . | . . 1 . . . . . . . . . . Largest Inventory Capacity 15 | 8 15 15 15 15 15 15 15 15 15 15 15 5 Average Capacity 14 | 7 11 15 15 15 15 15 15 15 15 15 14 5 Most Carried 15 | 3 10 10 15 15 15 15 15 15 15 15 15 5 Average Carried 12 | 2 8 9 13 14 15 13 14 14 14 15 14 3 Final Capacity 15 | 8 15 15 15 15 15 15 15 15 15 15 5 5 Final Carried 15 | 3 10 9 12 15 15 15 15 15 15 15 5 5 Class Distribution -------------------- 38% | Mutant 25% | Scavenger-Mutant 20% | Commander-Mutant 13% | Scavenger-Skirmisher Dominant Class ---------------- Mutant | -10/Materials Mutant | -10/Subcaves Mutant | -8/Materials Mutant | -8/Storage Commander-Mutant | -8/Recycling Commander-Mutant | -6/Factory Scavenger-Skirmisher | -5/Factory Scavenger-Mutant | -5/Extension Scavenger-Mutant | -5/Cetus Scavenger-Mutant | -5/Archives Scavenger-Mutant | -5/Hub_04(d) Scavenger-Mutant | -4/Factory Resources | -11 -10 -10 -8 -8 -8 -6 -5 -5 -5 -5 -5 -4 ----------- Run | Yrd Mat Sub Mat Sto Rec Fac Fac Ext Cet Arc Hub Fac Matter Collected 2476 | 338 64 211 375 157 53 90 104 441 260 21 212 150 Remotely . | . . . . . . . . . . . . . Salvage Created 7859 | 164 178 223 1934 1229 179 192 591 954 110 40 1120 945 Parts 358 | 9 14 10 105 67 7 8 29 35 3 1 41 29 Haulers Intercepted 13 | . 1 . 6 4 . . 1 . . . 1 . Recyclers Shooed 5 | 1 . . 2 1 . . . . . . . 1 Parts Field Recycled . | . . . . . . . . . . . . . Retrieved Matter . | . . . . . . . . . . . . . Parts Self-Destructed 4 | . . 4 . . . . . . . . . . Prevented . | . . . . . . . . . . . . . Parts Restored . | . . . . . . . . . . . . . Kills | -11 -10 -10 -8 -8 -8 -6 -5 -5 -5 -5 -5 -4 ------- Run | Yrd Mat Sub Mat Sto Rec Fac Fac Ext Cet Arc Hub Fac Combat Hostiles Destroyed 123 | . 5 6 34 23 4 3 9 11 1 . 14 13 Guns 110 | . 5 5 34 23 4 2 8 10 1 . 9 9 AOE 4 | . . 1 . . . . . . . . 3 . Classes Destroyed 20 | 2 3 1 8 1 1 . . 1 1 . 2 . Worker 12 | . . . 4 2 . . 1 . . . 5 . Builder 8 | . . . 2 1 . 1 . 1 . . 2 1 Tunneler 5 | 4 . . 1 . . . . . . . . . Hauler 13 | . 1 . 6 4 . . 1 . . . 1 . Recycler 7 | 1 . . 3 1 . . . 1 . . . 1 Mechanic 1 | . . . . 1 . . . . . . . . Operator 5 | . . . 1 1 . . 1 . . 1 1 . Watcher 7 | . 2 . 1 1 . . . 1 2 . . . Swarmer 26 | . 5 . 11 4 . . 2 . . . . 4 Cutter 3 | . . . 3 . . . . . . . . . Grunt 43 | . . . 12 10 1 2 . 5 . . 8 5 Brawler 3 | . . . . . . . . . . . 3 . Duelist 1 | . . . . . . . . 1 . . . . Protector 1 | . . . . . . . . . . . 1 . Sentry 22 | . . . 5 8 1 1 1 5 . . . 1 Specialist 1 | . . . . . . . . . . . 1 . Hunter 6 | . . . 2 1 . . 2 . . . . 1 Programmer 7 | . . . . . 1 . 4 . . . . 2 Heavy 1 | . . . 1 . . . . . . . . . Cetus Guard 1 | . . . . . . . . . 1 . . . Lightning 1 | . . . . . . . . . . . 1 . Subdweller 7 | . . 6 . . 1 . . . . . . . Savage 1 | . . . . . . . . . 1 . . . Best Kill Streak 14 | 2 3 2 11 9 2 2 2 3 2 1 14 9 Combat Bots Only 8 | . 3 2 8 6 2 2 2 3 1 . 8 6 Max Kills in Single Turn 9 | 1 2 1 2 2 1 1 1 1 1 1 9 1 Gunslinging 1 | . 1 . 1 1 . . . . . . . . Exploded 3 | . . 1 . . . . . . . . 3 . Melee . | . . . . . . . . . . . . . Uniques/NPCs Destroyed . | . . . . . . . . . . . . . Combat | -11 -10 -10 -8 -8 -8 -6 -5 -5 -5 -5 -5 -4 -------- Run | Yrd Mat Sub Mat Sto Rec Fac Fac Ext Cet Arc Hub Fac Hostile Shots Fired 994 | . 20 58 192 61 3 27 43 137 26 15 140 272 Missed 340 | . 9 18 51 26 2 12 16 33 8 6 48 111 Hits 654 | . 11 40 141 35 1 15 27 104 18 9 92 161 Melee 8 | . . . 5 . . . . . . . 3 . Projectile 646 | . 11 40 136 35 1 15 27 104 18 9 89 161 AOE 4 | . . . . . . . 1 . . . 3 . Critical Strikes 26 | . . . 3 . . . . 5 2 1 4 11 Part Disruptions 5 | . . . . 1 . . . . . . 3 1 Damage Taken 13581 | . 80 883 2145 550 15 126 722 2517 505 245 3046 2747 Core 2357 | . 30 219 282 29 . . 21 120 . 30 473 1153 Absorbed by Shields 212 | . . . . . . 32 36 64 80 . . . Ignored by Resistances 253 | . . . . . . . . . . . . 253 Regen/Repaired (Parts) 31 | . . . . 31 . . . . . . . . Core Remaining (%) 55 | 100 . . . . 43 100 . . . . 35 . Volleys Fired 483 | 17 17 38 129 51 4 15 25 62 12 5 50 58 Largest 2 | 2 2 2 2 2 2 2 2 2 2 2 2 2 Hottest 175 | 40 40 40 160 160 160 160 156 162 156 174 175 162 Shots Fired 915 | 34 34 59 254 103 8 30 50 119 16 10 96 102 Gun 899 | 34 34 53 254 103 8 30 50 119 8 10 94 102 Cannon . | . . . . . . . . . . . . . Launcher 16 | . . 6 . . . . . . 8 . 2 . Special . | . . . . . . . . . . . . . Kinetic 171 | 34 34 53 50 . . . . . . . . . Thermal 728 | . . . 204 103 8 30 50 119 8 10 94 102 Explosive 16 | . . 6 . . . . . . 8 . 2 . Electromagnetic . | . . . . . . . . . . . . . Robot Hit Streak 34 | 5 6 34 13 30 8 10 12 23 9 8 34 17 Robot Miss Streak 4 | 3 4 1 4 3 1 4 2 3 1 1 4 4 Penetration Max . | . . . . . . . . . . . . . Secondary Targets 21 | . 2 . 11 4 . . 1 . . . 1 2 Max Gunslinging Chain 1 | . 1 . 1 1 . . 1 . . . 1 1 Shots Hit Robots 702 | 20 19 52 182 90 6 23 34 100 15 8 70 83 Core Hits 383 | 8 11 16 88 75 7 14 23 33 20 4 49 35 Critical Kills 1 | . . . 1 . . . . . . . . . Critical Parts Destroyed 1 | . . . 1 . . . . . . . . . Critical Strikes 23 | . . . 5 . . 2 2 5 2 . . 7 Burn 21 | . . . 3 . . 2 2 5 2 . . 7 Destroy 2 | . . . 2 . . . . . . . . . Melee Attacks . | . . . . . . . . . . . . . Impact . | . . . . . . . . . . . . . Slashing . | . . . . . . . . . . . . . Piercing . | . . . . . . . . . . . . . Sneak Attacks . | . . . . . . . . . . . . . Combat Hostiles . | . . . . . . . . . . . . . Follow-up Attacks . | . . . . . . . . . . . . . Damage Inflicted 17685 | 204 223 655 3263 2326 151 527 846 2414 1132 257 3570 2117 Guns 14998 | 204 223 384 3263 2326 151 527 846 2414 174 257 2113 2116 Cannons . | . . . . . . . . . . . . . Explosions 2686 | . . 271 . . . . . . 958 . 1457 . Melee . | . . . . . . . . . . . . . Ramming 1 | . . . . . . . . . . . . 1 Kinetic 1090 | 204 223 384 279 . . . . . . . . . Thermal 14009 | . . . 2984 2326 151 527 846 2414 174 257 2214 2116 Explosive 1422 | . . 271 . . . . . . 958 . 193 . Electromagnetic 1163 | . . . . . . . . . . . 1163 . Impact . | . . . . . . . . . . . . . Slashing . | . . . . . . . . . . . . . Piercing . | . . . . . . . . . . . . . Highest Corruption 23 | . . . 1 2 2 . 5 7 7 7 23 5 Average Corruption 4 | . . . 1 1 2 . 3 5 7 7 16 4 Corruption Purged . | . . . . . . . . . . . . . Corruption Blocked . | . . . . . . . . . . . . . Effects 174 | . . . 4 11 18 . 18 49 21 11 30 12 Message Errors 38 | . . . 2 1 5 . 4 11 5 2 7 1 Matter Fused 53 | . . . 1 1 8 . 6 15 6 3 7 6 Heat Flow Errors 17 | . . . 1 2 2 . . 4 4 1 3 . Energy Discharges 18 | . . . . 1 3 . 2 5 1 1 2 3 Parts Fused 1 | . . . . . . . . 1 . . . . Data Loss (minor) 19 | . . . . 2 . . 3 5 1 3 3 2 Data Loss (major) 12 | . . . . 1 . . 2 3 2 1 3 . Misfires 6 | . . . . 2 . . . . 1 . 3 . Alerts 4 | . . . . . . . 1 3 . . . . Weapon Failures 6 | . . . . 1 . . . 2 1 . 2 . Overload Shots . | . . . . . . . . . . . . . Overflow Damage 50 | . . . . . . . . . . . 50 . Projectiles . | . . . . . . . . . . . . . Explosions 50 | . . . . . . . . . . . 50 . Melee . | . . . . . . . . . . . . . Knockbacks . | . . . . . . . . . . . . . Impact . | . . . . . . . . . . . . . Kinetic . | . . . . . . . . . . . . . Secondary . | . . . . . . . . . . . . . Self-Inflicted Damage 138 | . . . . . . . . . 35 . 103 . Shots 3 | . . . . . . . . . 1 . 2 . Rammed 2 | . . . . . . . . . . . . 2 Targets Rammed 2 | . . . . . . . . . . . . 2 Kicked . | . . . . . . . . . . . . . Crushed . | . . . . . . . . . . . . . Highest Temperature 453 | . . . 235 263 123 164 2 453 194 270 125 47 Average Temperature 54 | . . . 48 63 34 59 1 73 88 178 37 13 Received Heat Transfer 2494 | . . 219 468 189 . 35 27 846 49 27 300 334 Effects 5 | . . . 1 3 . . . 1 . . . . Interference 4 | . . . 1 3 . . . . . . . . Damage (minor) 1 | . . . . . . . . 1 . . . . Siege Activations . | . . . . . . . . . . . . . Martial Activations . | . . . . . . . . . . . . . Shielding Activations . | . . . . . . . . . . . . . Robots Disrupted . | . . . . . . . . . . . . . Combat Hostiles . | . . . . . . . . . . . . . Robots Corrupted 2 | . . . . . . . . . . . 2 . Combat Hostiles 2 | . . . . . . . . . . . 2 . Parts Fried 7 | . . . . . . . . . . . 7 . Impact Corruptions . | . . . . . . . . . . . . . Robots Melted 7 | . . . . . . 1 1 1 . . . 4 Combat Hostiles 7 | . . . . . . 1 1 1 . . . 4 Parts Melted 66 | . . . 17 12 . 2 12 7 . . 3 13 Heat Transferred 26289 | . . . 5967 5250 325 1400 1846 4212 426 333 2675 3855 Parts Sabotaged . | . . . . . . . . . . . . . Parts Stolen . | . . . . . . . . . . . . . Parts Stripped . | . . . . . . . . . . . . . Power Chain Reactions 1 | . . . . . . . . . . . 1 . Alert | -11 -10 -10 -8 -8 -8 -6 -5 -5 -5 -5 -5 -4 ------- Run | Yrd Mat Sub Mat Sto Rec Fac Fac Ext Cet Arc Hub Fac Maximum Alert Level 5 | . . . 2 1 . 1 . 2 1 1 5 4 Low Security (%) 64 | 100 100 . 73 26 100 50 100 83 3 61 18 . Level 1 19 | . . . 7 73 . 49 . 16 96 38 3 . Level 2 3 | . . . 18 . . . . . . . 6 . Level 3 4 | . . . . . . . . . . . 5 52 Level 4 3 | . . . . . . . . . . . . 47 Level 5 3 | . . . . . . . . . . . 61 . High Security . | . . . . . . . . . . . 4 . Max Security . | . . . . . . . . . . . . . Peak Influence 2368 | 10 120 . 442 380 138 346 174 400 357 245 2368 1279 Initial 1125 | . . . . 179 138 . 156 48 215 120 46 1125 Average 279 | 1 31 . 128 250 20 171 50 91 282 187 1609 1099 Influence Increases 8712 | 25 232 . 1063 797 169 599 468 1112 474 185 2876 712 Destroy 0b10 Robot/C 3720 | . 100 . 680 500 80 220 260 600 160 80 780 260 Destroy 0b10 Robot/NC 350 | 25 15 . 90 55 . 25 15 25 10 5 75 10 Destroy Leader 778 | . 26 . 164 150 . 66 72 66 . . 184 50 Allied During Kill 2010 | . . . . 75 74 288 71 337 160 85 920 . Successful Hack 137 | . 61 . 22 14 14 . 5 21 . . . . Disable Machine 405 | . 15 . 75 . . . 15 45 30 15 210 . Anti-Garrison Action 150 | . . . . . . . . . . . 150 . Destroy Structure 652 | . . . 2 3 1 . . 18 114 . 512 2 Partial Spotted 15 | . . . . . . . . . . . . 15 Lose Combat Pursuer 495 | . 15 . 30 . . . 30 . . . 45 375 Influence Decreases 7433 | 25 232 . 638 866 525 280 688 826 558 351 713 1731 Entered New Map 2291 | . . . . 246 218 . 163 51 170 181 89 1173 Time Decay 3513 | 25 145 . 432 470 215 260 345 471 278 130 314 428 Lost Part 463 | . . . 110 . . . . 43 30 20 130 130 Lost Ally 741 | . . . . . . 20 180 261 80 20 180 . Purge Threat 425 | . 87 . 96 150 92 . . . . . . . Squads Dispatched 46 | . . . 7 5 . 3 9 4 . . 13 5 Investigation 9 | . . . 2 2 . 1 . 3 . . 1 . Extermination 6 | . . . . . . 1 2 . . . 1 2 Reinforcement 21 | . . . 4 2 . 1 4 1 . . 7 2 Assault 5 | . . . 1 . . . . . . . 3 1 Garrison 5 | . . . . 1 . . 3 . . . 1 . Intercept . | . . . . . . . . . . . . . Searches Triggered . | . . . . . . . . . . . . . Construction Impeded 2 | . . . . . . 1 . . . . 1 . Haulers Reinforced 1 | . . . . . . . . . . . 1 . Active Scanning Responses . | . . . . . . . . . . . . . Cargo Convoy Interrupts . | . . . . . . . . . . . . . Stealth | -11 -10 -10 -8 -8 -8 -6 -5 -5 -5 -5 -5 -4 --------- Run | Yrd Mat Sub Mat Sto Rec Fac Fac Ext Cet Arc Hub Fac Distress Signals 21 | . . . 3 4 2 1 1 2 2 . 5 1 Communications Jammed . | . . . . . . . . . . . . . Distress Signals . | . . . . . . . . . . . . . Times Spotted 269 | . 10 6 49 41 6 14 17 33 8 3 36 46 Peak Tracking Total 10 | . 3 2 9 6 2 5 6 4 5 2 7 10 Tactical Retreats 14 | . 1 . 2 . . . 1 . . . 1 9 Traps | -11 -10 -10 -8 -8 -8 -6 -5 -5 -5 -5 -5 -4 ------- Run | Yrd Mat Sub Mat Sto Rec Fac Fac Ext Cet Arc Hub Fac Traps Triggered 6 | . . . 1 2 . . 1 1 . . . 1 Indirectly . | . . . . . . . . . . . . . Trap Hack Attempts . | . . . . . . . . . . . . . Triggered . | . . . . . . . . . . . . . Disarmed . | . . . . . . . . . . . . . Reprogrammed . | . . . . . . . . . . . . . Reused . | . . . . . . . . . . . . . Traps Extracted . | . . . . . . . . . . . . . Installed . | . . . . . . . . . . . . . Triggered . | . . . . . . . . . . . . . Machines | -11 -10 -10 -8 -8 -8 -6 -5 -5 -5 -5 -5 -4 ---------- Run | Yrd Mat Sub Mat Sto Rec Fac Fac Ext Cet Arc Hub Fac Machines Disabled 28 | . 1 . 5 . . . 1 3 2 1 15 . Max in Single Turn 10 | . 1 . 1 . . . 1 1 1 . 10 . Garrison Access 2 | . . . . 1 . . . . . . 1 . Network Hub 2 | . . . . . . . . . . . 2 . Machines Repaired . | . . . . . . . . . . . . . Machines Dismantled 4 | . . . . . . . . 2 2 . . . Machines Sabotaged . | . . . . . . . . . . . . . Overloaded Fab Kills . | . . . . . . . . . . . . . Hacking | -11 -10 -10 -8 -8 -8 -6 -5 -5 -5 -5 -5 -4 --------- Run | Yrd Mat Sub Mat Sto Rec Fac Fac Ext Cet Arc Hub Fac Machines Accessed 47 | . 6 1 11 7 4 2 4 7 1 1 1 2 Terminals 37 | . 6 . 10 5 4 1 2 7 1 . . 1 Fabricators 3 | . . . . . . . 2 . . . . 1 Repair Stations 1 | . . . . 1 . . . . . . . . Recycling Units . | . . . . . . . . . . . . . Scanalyzers 2 | . . . 1 . . 1 . . . . . . Garrison Access 2 | . . . . 1 . . . . . . 1 . Total Hacks 131 | . 24 5 35 13 15 5 8 17 3 1 3 2 Successful 56 | . 17 5 13 9 5 . 1 4 . 1 . 1 Failed 75 | . 7 . 22 4 10 5 7 13 3 . 3 1 Catastrophic 12 | . . . 4 1 . 1 1 2 . . 2 1 Database Lockouts . | . . . . . . . . . . . . . Manual 70 | . 23 . 28 2 8 . 2 . 3 3 . 1 Terminals 111 | . 24 . 34 11 15 2 4 17 3 . . 1 Fabricators 5 | . . . . . . . 4 . . . . 1 Repair Stations 1 | . . . . 1 . . . . . . . . Recycling Units . | . . . . . . . . . . . . . Scanalyzers 4 | . . . 1 . . 3 . . . . . . Garrison Access 4 | . . . . 1 . . . . . . 3 . Terminal Hacks 37 | . 8 5 6 7 5 . 1 4 . 1 . . Record 6 | . . 5 . . . . . . . 1 . . Robot Analysis 4 | . 3 . . . 1 . . . . . . . Prototype ID Bank 2 | . . . . 1 1 . . . . . . . Open Door 6 | . . . . 2 . . . 4 . . . . Open DSF 1 | . . . . . . . 1 . . . . . Alert Level 2 | . . . . 2 . . . . . . . . Unreport Threat 7 | . 2 . 2 1 2 . . . . . . . Locate Traps 5 | . 2 . 2 1 . . . . . . . . Zone Layout 4 | . 1 . 2 . 1 . . . . . . . Fabricator Hacks 1 | . . . . . . . . . . . . 1 Network Status 1 | . . . . . . . . . . . . 1 Repair Station Hacks . | . . . . . . . . . . . . . Recycling Unit Hacks . | . . . . . . . . . . . . . Scanalyzer 1 | . . . 1 . . . . . . . . . Retrieve Study 1 | . . . 1 . . . . . . . . . Garrison Access Hacks 1 | . . . . 1 . . . . . . . . Seal Access 1 | . . . . 1 . . . . . . . . Unauthorized Hacks 16 | . 9 . 6 1 . . . . . . . . Terminals 15 | . 9 . 6 . . . . . . . . . Botnet 4 | . 4 . . . . . . . . . . . Skim 11 | . 5 . 6 . . . . . . . . . Fabricators . | . . . . . . . . . . . . . Repair Stations 1 | . . . . 1 . . . . . . . . Patch 1 | . . . . 1 . . . . . . . . Recycling Units . | . . . . . . . . . . . . . Scanalyzers . | . . . . . . . . . . . . . Garrison Access . | . . . . . . . . . . . . . Data Cores Recovered 2 | . . . 1 1 . . . . . . . . Used 1 | . . . 1 . . . . . . . . . Hacking Detections 34 | . 6 . 10 3 3 2 3 4 1 . 1 1 Full Trace Events 8 | . . . 2 1 . 1 . 3 . . 1 . Feedback Events 1 | . . . . . . . . . . . 1 . Corruption 1 | . . . . . . . . . . . 1 . Feedback Blocked . | . . . . . . . . . . . . . Robot Schematics Acquired . | . . . . . . . . . . . . . Robots Built . | . . . . . . . . . . . . . Authchips . | . . . . . . . . . . . . . Time . | . . . . . . . . . . . . . Total Robot Build Rating . | . . . . . . . . . . . . . Part Schematics Acquired . | . . . . . . . . . . . . . Parts Built . | . . . . . . . . . . . . . Authchips . | . . . . . . . . . . . . . Time . | . . . . . . . . . . . . . Total Part Build Rating . | . . . . . . . . . . . . . Part Studies Acquired 1 | . . . 1 . . . . . . . . . Parts Repaired . | . . . . . . . . . . . . . Time . | . . . . . . . . . . . . . Parts Recycled . | . . . . . . . . . . . . . Recycled Matter . | . . . . . . . . . . . . . Retrieved Matter . | . . . . . . . . . . . . . Retrieved Components . | . . . . . . . . . . . . . Parts Scanalyzed . | . . . . . . . . . . . . . Part Schematics Acquired . | . . . . . . . . . . . . . Parts Damaged . | . . . . . . . . . . . . . Bothacking | -11 -10 -10 -8 -8 -8 -6 -5 -5 -5 -5 -5 -4 ------------ Run | Yrd Mat Sub Mat Sto Rec Fac Fac Ext Cet Arc Hub Fac Used RIF Installer . | . . . . . . . . . . . . . Robots Hacked . | . . . . . . . . . . . . . Non-combat . | . . . . . . . . . . . . . Combat . | . . . . . . . . . . . . . Robot Hacks Applied . | . . . . . . . . . . . . . Relay Couplers Released 2 | . . . . . . . . . . . 2 . Machine Destruction 2 | . . . . . . . . . . . 2 . Fabnet Peak Effective % . | . . . . . . . . . . . . . Robots Rewired 42 | . . . . . 20 . . 22 . . . . Allies Hacked . | . . . . . . . . . . . . . Hacks Repelled . | . . . . . . . . . . . . . Allies | -11 -10 -10 -8 -8 -8 -6 -5 -5 -5 -5 -5 -4 -------- Run | Yrd Mat Sub Mat Sto Rec Fac Fac Ext Cet Arc Hub Fac Total Allies 65 | . . . . 10 20 . . 30 5 . . . Largest Group 30 | . . . . 10 30 19 17 12 13 12 10 . Highest-Rated Group 830 | . . . . 173 501 357 324 463 830 805 615 . Highest-Rated Ally 159 | . . . . 29 34 29 29 159 159 159 96 . Total Orders 12 | . . . . . 12 . . . . . . . ROAM 11 | . . . . . 11 . . . . . . . FOLLOW 1 | . . . . . 1 . . . . . . . Ally Attacks 550 | . . . . 18 29 72 27 178 42 39 145 . Total Damage 13060 | . . . . 186 360 1117 372 3283 1078 817 5847 . Kills 87 | . . . . 3 4 12 4 21 7 4 32 . Allies Corrupted 2 | . . . . . . 1 . 1 . . . . Allies Melted . | . . . . . . . . . . . . . Intel | -11 -10 -10 -8 -8 -8 -6 -5 -5 -5 -5 -5 -4 ------- Run | Yrd Mat Sub Mat Sto Rec Fac Fac Ext Cet Arc Hub Fac Active Infowar (turns) 4914 | 27 579 1106 . . . 772 1484 945 . . 1 . Sensors 3201 | . . . . . . 772 1484 945 . . . . Terrain 2139 | . . . . . . . 1484 655 . . . . Seismic 1712 | 27 579 1106 . . . . . . . . . . Triangulation 1 | . . . . . . . . . . . 1 . Robot Analysis Total 4 | . 3 . . . 1 . . . . . . . Derelict Logs Recovered 2 | . . 2 . . . . . . . . . . Drone Launches . | . . . . . . . . . . . . . Drone Recoveries . | . . . . . . . . . . . . . Exploration | -11 -10 -10 -8 -8 -8 -6 -5 -5 -5 -5 -5 -4 ------------- Run | Yrd Mat Sub Mat Sto Rec Fac Fac Ext Cet Arc Hub Fac Turns Passed 14143 | 181 579 1311 2306 1189 1923 774 1484 1718 617 268 744 1049 Spaces Moved 6831 | 103 336 650 1073 526 751 377 631 689 308 144 346 897 Core 220 | 4 . 12 . . . . 1 . . . 3 200 Treads 4176 | . . . 131 526 751 377 630 689 308 144 343 277 Legs 1564 | 99 336 525 554 . . . . . . . . 50 Wheels 501 | . . 113 388 . . . . . . . . . Hover . | . . . . . . . . . . . . . Flight 370 | . . . . . . . . . . . . 370 Fastest Speed 34 | 50 120 115 90 153 157 158 158 155 160 160 160 34 Average Speed 151 | 117 138 181 158 164 157 158 158 158 160 160 166 93 Slowest Speed 750 | 120 190 450 400 166 157 158 650 160 160 160 750 600 Overloaded Moves . | . . . . . . . . . . . . . Propulsion Burnouts . | . . . . . . . . . . . . . Robots Hopped 6 | . . . . . . . . . . . . 6 Potential Cave-ins . | . . . . . . . . . . . . . Cave-ins Triggered . | . . . . . . . . . . . . . Exploration Rate (%) 55 | 5 62 32 77 81 93 11 14 74 89 95 54 31 Regions Visited 12 Branch Regions 7 Pre-discovered Areas 3 | . 1 1 1 . . . . . . . . . Known Exits Taken 11 | . 1 1 1 1 1 1 1 1 1 1 1 . Unknown Exits Taken 1 | 1 . . . . . . . . . . . . Scrap Searched . | . . . . . . . . . . . . . Spaces Dug . | . . . . . . . . . . . . . Terrain Destroyed 480 | . . 31 . . . . . . 129 . 320 . Melee . | . . . . . . . . . . . . . Projectile 2 | . . . . . . . . . . . 2 . AOE 478 | . . 31 . . . . . . 129 . 318 . Terrain Rammed . | . . . . . . . . . . . . . Walls Destroyed . | . . . . . . . . . . . . . Machines Disabled . | . . . . . . . . . . . . . Actions | -11 -10 -10 -8 -8 -8 -6 -5 -5 -5 -5 -5 -4 --------- Run | Yrd Mat Sub Mat Sto Rec Fac Fac Ext Cet Arc Hub Fac Total 9657 | 129 419 727 1432 730 1485 522 1066 1167 373 172 429 1006 Wait 1556 | . 58 32 154 128 518 120 392 70 22 21 5 36 Move 6807 | 102 335 649 1072 525 750 376 630 688 307 143 345 885 Hop 6 | . . . . . . . . . . . . 6 Pick Up 47 | 3 5 2 21 2 . 1 3 5 . . 3 2 Fast Attach 55 | 7 . 2 13 3 . . 2 10 1 1 3 13 Attach 30 | . . 3 10 . . 4 2 3 1 . 4 3 Detach 3 | . . . 2 . . . 1 . . . . . Swap 84 | . 3 1 14 12 . 5 5 22 10 1 11 . Drop 59 | . 1 . 17 9 . 1 6 15 1 1 8 . Fire 483 | 17 17 38 129 51 4 15 25 62 12 5 50 58 Melee . | . . . . . . . . . . . . . Ram 2 | . . . . . . . . . . . . 2 Kick . | . . . . . . . . . . . . . Crush . | . . . . . . . . . . . . . Escape Stasis 1 | . . . . . . . . . . . . 1 Rewire 489 | . . . . . 213 . . 276 . . . . Trap . | . . . . . . . . . . . . . Miscellaneous 35 | . . . . . . . . 16 19 . . . Route ------- -11/Scrapyard -10/Materials (discovered 4 exits: *Mat x3 / *Sub) -10/Subcaves (discovered 2 exits: *Mat x2) -8/Materials (discovered 5 exits: *Fac x3 / *Sto x2) -8/Storage (discovered 2 exits: *Fac / *Rec) -8/Recycling -6/Factory -5/Factory -5/Extension (discovered 3 exits: *Fac x2 / *Cet) -5/Cetus (discovered 2 exits: *Fac / *Arc) -5/Archives (discovered 3 exits: *Fac / *Hub x2) -5/Hub_04(d) (discovered 2 exits: *Fac x2) -4/Factory (discovered 1 exit: [*Res]) History --------- Turn | Location | Event 7 | -11/Scrapyard | Discovered new exit (range 13) 182 | -11/Scrapyard | Entered Materials 306 | -10/Materials | Build established: Mutant 385 | -10/Materials | Discovered new exit (range 15) 410 | -10/Materials | Discovered new exit (range 17) 530 | -10/Materials | Learned Storage garrison access intel 606 | -10/Materials | Identified exit to Materials 610 | -10/Materials | Loaded intel: 15 trap records 626 | -10/Materials | Identified exit to Subcaves 761 | -10/Materials | Entered Subcaves 762 | -10/Subcaves | Identified exit to Materials 856 | -10/Subcaves | Visited Clippyterm 862 | -10/Subcaves | Learned Factory emergency access door positions 862 | -10/Subcaves | Learned Factory trap positions 894 | -10/Subcaves | Learned location of Zion (-6) 1019 | -10/Subcaves | Learned location of 1 exit from Materials 1803 | -10/Subcaves | Core integrity fell below 50% 1874 | -10/Subcaves | Core integrity fell below 20% 1915 | -10/Subcaves | Lost 5 parts (1p2n1u1w) 2053 | -10/Subcaves | Discovered exit to Materials (range 16) 2072 | -10/Subcaves | Entered Materials 2072 | -8/Materials | Evolved 4 slots: Propulsion x2, Utility x2 2073 | -8/Materials | Identified exit to Storage 2074 | -8/Materials | Identified exit to Factory 3752 | -8/Materials | Lost 5 parts (1p3n1u) 3867 | -8/Materials | Core integrity fell below 50% 3890 | -8/Materials | Destroyed 8 combat bots 3895 | -8/Materials | Lost 3 parts (1n2w) 4068 | -8/Materials | Learned location of 1 exit from Recycling 4072 | -8/Materials | First assault squad dispatched 4096 | -8/Materials | Discovered exit to Factory (range 3) 4152 | -8/Materials | Learned 4 Recycling zone layouts 4177 | -8/Materials | Learned Factory emergency access door positions 4190 | -8/Materials | Learned Factory emergency access door positions 4193 | -8/Materials | Learned Factory garrison access intel 4194 | -8/Materials | Learned Factory stockpile data 4195 | -8/Materials | Learned 4 Lower Caves zone layouts 4219 | -8/Materials | Learned location of 1 exit from Extension 4378 | -8/Materials | Entered Storage 4379 | -8/Storage | Loaded intel: 1 garrison access location 5190 | -8/Storage | Met 01-MTF 5281 | -8/Storage | Discovered exit to Factory (range 16) 5370 | -8/Storage | Assisted by bots powering up and referring to "LRC-V3" 5452 | -8/Storage | Garrison activated, responded to threat 5480 | -8/Storage | Discovered new exit (range 6) 5525 | -8/Storage | Identified exit to Recycling 5567 | -8/Storage | Entered Recycling 5567 | -8/Recycling | Accompanied by 11 allies (01-MTF) 5568 | -8/Recycling | Identified exit to Factory 5674 | -8/Recycling | Build established: Commander-Mutant 7490 | -8/Recycling | Entered Factory 7490 | -6/Factory | Accompanied by 19 allies 7490 | -6/Factory | Evolved 4 slots: Propulsion x2, Utility x2 7491 | -6/Factory | Loaded intel: 114 trap records 7494 | -6/Factory | Loaded intel: 4 garrison access locations 7980 | -6/Factory | Discovered new exit (range 16) 8008 | -6/Factory | Identified exit to Factory 8264 | -6/Factory | Entered another Factory area 8264 | -5/Factory | Accompanied by 17 allies 8264 | -5/Factory | Evolved 2 slots: Utility x2 8435 | -5/Factory | Lost 7 allies 8487 | -5/Factory | Lost 7 allies 8758 | -5/Factory | Build established: Scavenger-Skirmisher 8783 | -5/Factory | Garrison activated, responded to threat 9707 | -5/Factory | Discovered new exit (range 16) 9745 | -5/Factory | Identified exit to Extension 9748 | -5/Factory | Entered Extension 9749 | -5/Extension | Identified exit to Cetus 10067 | -5/Extension | Lost 3 parts (2n1w) 10119 | -5/Extension | Lost 3 allies 10246 | -5/Extension | Rescued a captive Derelict 10274 | -5/Extension | Rescued a captive Derelict 10283 | -5/Extension | Rescued a captive Derelict 10305 | -5/Extension | Spotted B-75 Beast 10390 | -5/Extension | Lost 7 allies 10396 | -5/Extension | Spotted B-75 Beast 10427 | -5/Extension | Allies destroyed B-75 Beast 10454 | -5/Extension | Lost 4 parts (2n2u) 10466 | -5/Extension | Lost 3 allies 10571 | -5/Extension | Discovered new exit (range 3) 10573 | -5/Extension | Identified exit to Factory 10693 | -5/Extension | Build established: Scavenger-Mutant 10879 | -5/Extension | Rescued A7 10999 | -5/Extension | Rescued a captive Derelict 11000 | -5/Extension | Rescued a captive Derelict 11354 | -5/Extension | Rescued a captive Derelict 11354 | -5/Extension | Rescued a captive Derelict 11387 | -5/Extension | Discovered exit to Factory (range 10) 11466 | -5/Extension | Entered Cetus 11466 | -5/Cetus | Accompanied by 12 allies (A7) 11471 | -5/Cetus | Acquired a Cetus Manufacturing Module code from A7 11486 | -5/Cetus | Spotted Cetus Guard 11486 | -5/Cetus | Spotted Cetus Guard 11488 | -5/Cetus | Allies destroyed Cetus Guard 11490 | -5/Cetus | Spotted Cetus Guard 11493 | -5/Cetus | Spotted Cetus Guard 11494 | -5/Cetus | Allies destroyed Cetus Guard 11511 | -5/Cetus | Destroyed Cetus Guard 11513 | -5/Cetus | Allies destroyed Cetus Guard 11541 | -5/Cetus | Lost 4 allies 11664 | -5/Cetus | Started Cetus Manufacturing Module 11689 | -5/Cetus | Manufactured an Enhanced Grunt 11702 | -5/Cetus | Escorted A7 to Cetus Mainframe 11714 | -5/Cetus | Manufactured an Enhanced Grunt 11739 | -5/Cetus | Manufactured an Enhanced Grunt 11764 | -5/Cetus | Manufactured an Enhanced Grunt 11789 | -5/Cetus | Manufactured an Enhanced Grunt 11862 | -5/Cetus | Discovered new exit (range 15) 11884 | -5/Cetus | Identified exit to Archives 11920 | -5/Cetus | Spotted Cetus Guard 11921 | -5/Cetus | Spotted Cetus Guard 11923 | -5/Cetus | Spotted Cetus Guard 11924 | -5/Cetus | Spotted Cetus Guard 11931 | -5/Cetus | Allies destroyed Cetus Guard 11935 | -5/Cetus | Allies destroyed Cetus Guard 11938 | -5/Cetus | Allies destroyed Cetus Guard 11941 | -5/Cetus | Allies destroyed Cetus Guard 11947 | -5/Cetus | Discovered exit to Factory (range 16) 11957 | -5/Cetus | Met Revision 17 12083 | -5/Cetus | Entered Archives 12083 | -5/Archives | Accompanied by 12 allies (A7) 12088 | -5/Archives | Received a hacking code to weaken MAIN.C 12154 | -5/Archives | Unable to access archive contents 12159 | -5/Archives | Discovered new exit (range 14) 12178 | -5/Archives | Identified exit to Hub_04(d) 12214 | -5/Archives | Unable to access archive contents 12233 | -5/Archives | Unable to access archive contents 12236 | -5/Archives | Discovered exit to Factory (range 15) 12305 | -5/Archives | Discovered exit to Hub_04(d) (range 16) 12351 | -5/Archives | Entered Hub_04(d) 12351 | -5/Hub_04(d) | Accompanied by 10 allies 12474 | -5/Hub_04(d) | Lost 3 allies 12598 | -5/Hub_04(d) | Network Hub disabled 12598 | -5/Hub_04(d) | Network Hub disabled 12604 | -5/Hub_04(d) | System corruption reached 10% 12624 | -5/Hub_04(d) | Spotted Lightning 12629 | -5/Hub_04(d) | Spotted Lightning 12629 | -5/Hub_04(d) | Spotted Lightning 12631 | -5/Hub_04(d) | Destroyed 8 combat bots 12640 | -5/Hub_04(d) | Allies destroyed Lightning 12651 | -5/Hub_04(d) | First assault squad dispatched 12652 | -5/Hub_04(d) | Allies destroyed Lightning 12653 | -5/Hub_04(d) | Found Prototype Processor 12653 | -5/Hub_04(d) | Identified Exp. Targeting Computer 12661 | -5/Hub_04(d) | Destroyed Lightning 12666 | -5/Hub_04(d) | Found Exp. Targeting Computer 12669 | -5/Hub_04(d) | Lost 4 parts (1n2u1w) 12742 | -5/Hub_04(d) | Discovered exit to Factory (range 4) 13045 | -5/Hub_04(d) | Discovered exit to Factory (range 10) 13059 | -5/Hub_04(d) | High security lockdown imminent 13061 | -5/Hub_04(d) | Core integrity fell below 50% 13095 | -5/Hub_04(d) | Entered Factory 13095 | -4/Factory | Evolved 2 slots: Utility x2 13122 | -4/Factory | Lost 7 parts (2n4u1w) 13779 | -4/Factory | Lost 6 parts (2n2u2w) 13905 | -4/Factory | Released all parts (6) 13932 | -4/Factory | Lost 6 parts (1p1n2u2w) 14070 | -4/Factory | Released all parts (4) 14077 | -4/Factory | Core integrity fell below 50% 14095 | -4/Factory | First assault squad dispatched 14115 | -4/Factory | Core integrity fell below 20% 14137 | -4/Factory | Discovered new exit (range 15) 14144 | -4/Factory | Destroyed by S-27 Virus with Autogun Last Messages --------------- 14026_ Stasis field depleted. 14027_ System corrupted: Component data lost. 14027_ ALERT: Potential suspicious activity detected, Programmers report to Factory Zone 5T. 14048_ Connecting with Terminal... 14056_ H-71 Marshal calls for reinforcements. 14056_ ALERT: Suspicious intruders detected, dispatching Cutter reinforcements to area. 14062_ System corrupted: Matter fused (-6). 14063_ Construction Platform disabled. 14070_ Released Hvy. Machine Gun. 14070_ Released Field Propulsion Array. 14072_ Acquired Field Propulsion Array. 14095_ ALERT: Unidentified disturbance in Zone 7Z, assault force dispatched. 14108_ System corrupted: Matter fused (-6). 14108_ Acquired Adv. Signal Interpreter. 14123_ System corrupted: Matter fused (-8). 14137_ EXIT=FOUND 14138_ System corrupted: Energy discharge (-37). Map ----- +----------------------------------------------------+ | ?????????????????????????????????????????????????? | | ?????????????????????????????????????????????????? | | ?????????????????????????????????????????????????? | | ???????????????????+?????????????????????????????? | | ?????????????????????????????????????????????????? | | ????????????+????????????????????????????????????? | | ?????????????????????????????????????????????????? | | ?????????????????????????????????????????????????? | | ?????????????????????????????????????????????????? | | ?????????????????????????????????????????????????? | | ?????????????????????????????????????????????????? | | ?????????????????????????????????????????????????? | | ?????????????????????????????????????????????????? | | ?????????????????????????????????????????????????? | | ?????????????????????????????????????????????????? | | ??????????????????????????????????????##+#####+##? | | ?????????????????????????????????????# ? | | ?????????????????????????????????????# ? | | ?????????????????????????????????????# ?? | | ?????????????????????????????????????# ? | | ?????????????????????????????????????# ? ? | | ?????????????????????????????????????# #??# " | | ?????????????????????###########+##### ^ #??# " | | ?????????????????????# #??# | | ?????????????????????# #??# " | | ?????????????????????# <@ s #??# " | | ?????????????????????# k s s #??# " | | ?????????????????????# s #??# " | | ?????????????????????##################+####### | | ?????????????????????????????????# / | | ?????????????????????????????????# # | | ?????????????????????????????????# """ """ # | | ?????????????????????????????????# """ """ # | | ?????????????????????????????????# ! """ """ # | | ?????????????????????????????????# + | | ?????????????????????????????????# """ #### | | ?????????????????????????????????# """ #??? | | ?????????????????????????????????# "" "" """ #??? | | ?????????????????????????????????# "F "" #??? | | ?????????????????????????????????#?""?"" #??? | | ??????????????????????????????????????? #??? | | ???????????????????????????????????????#######???? | | ?????????????????????????????????????????????????? | | ?????????????????????????????????????????????????? | | ?????????????????????????????????????????????????? | | ?????????????????????????????????????????????????? | | ?????????????????????????????????????????????????? | | ?????????????????????????????????????????????????? | | | | | +----------------------------------------------------+ Best States ------------- Heat Dissipation 109 Energy Generation 19 Energy Capacity 315 Matter Stores 300 Matter Capacity 300 Sight Range 16 Robot Scan Range 15 Terrain Scan Range 16 Terrain Scan Density 10 Base Temperature (-) 200 Armor Coverage 675 Resistance: TH 25 Evasion (%) 63 Targeting Accuracy 24 Target Analysis 6 Core Analysis 6 Recoil Reduction 6 Item Schematics ----------------- None Robot Schematics ------------------ None Fabricated ------------ Nothing Repaired ---------- Nothing Studied --------- Aluminum Leg | -8/Materials | Hacked Alien Tech Used ----------------- None Achievements -------------- None Challenges ------------ None Game ------ Seed SmallOmegaShredder Manual? 0 Play Time 01:30:04 Cumulative 275.9 hours Start 2026.09.14 @ 13:44:57 End 2026.09.14 @ 21:49:31 Sessions 3 Manual Loads 0 Difficulty Rogue Special Mode None Game No. 493 Rogue 330 Adventurer 15 Explorer 148 Win Type - Total 33 Types 32/0/0/1/0/0/0/0/0/0 Lore% 65 Gallery% 65 Achievement% 58 Wizard Run 0 Options --------- Layout 0 ASCII 0 Keyboard 1 Movement Numpad Keybinds 0 Fullscreen 2 Font 18/SmallcapsGlow Map View 76x50 Zoom Use 0% Tactical HUD 1 Map Filters NONE Filters NONE Steam 1 RUN: ab55f86f-e41b-4e82-97e4-0b0b1ba850c7